bitfinex-derivatives/quotes_SOLF0:USTF0_20250505
["timestamp","ask_amount","ask_price","bid_price","bid_amount"]
[1746469702894,2.0602,145.91,145.84,1.0]
[1746469702895,13.7027,145.98,145.84,32.16244067]
[1746469703086,43.5611,145.98,145.88,7.34244067]
[1746469703286,7.34244067,145.95,145.88,7.34244067]
[1746469703687,6.8539,145.93,145.89,6.8552]
[1746469703994,7.34244067,145.95,145.88,7.34244067]
[1746469704189,7.34244067,145.95,145.88,31.16244067]
[1746469704693,7.34244067,145.95,145.92,6.8538]
[1746469705090,7.34244067,145.95,145.88,31.16244067]
[1746469705590,7.34244067,145.95,145.93,6.8536]
[1746469705790,6.8525,145.96,145.93,6.8536]
[1746469706692,6.8525,145.96,145.94,6.8531]
[1746469709298,6.8525,145.96,145.93,6.8534]
[1746469710594,6.8525,145.96,145.94,6.8531]
[1746469711189,6.8525,145.96,145.93,6.8534]
[1746469711594,6.8528,145.95,145.93,6.8534]
[1746469711794,41.32597574,145.98,145.93,6.8534]
[1746469712795,6.8525,145.96,145.93,6.8534]
[1746469714095,6.8525,145.96,145.94,6.853]
[1746469714998,6.8518,145.97,145.88,23.82]
[1746469715391,27.8301,145.98,145.89,11.46757574]
[1746469715792,34.6817,145.98,145.95,6.8524]
[1746469715994,27.8301,145.98,145.95,6.8524]
[1746469716401,6.8518,145.97,145.93,6.8532]
[1746469716797,6.8518,145.97,145.89,11.46757574]
[1746469717901,6.8518,145.97,145.93,6.8533]
[1746469718094,6.8523,145.96,145.93,6.8533]
[1746469722093,23.82,145.99,145.92,23.82]
[1746469722295,25.8755,145.99,145.92,23.82]
[1746469722589,6.853,145.95,145.92,30.6738]
[1746469722798,25.8755,145.99,145.92,23.82]
[1746469723399,6.8529,145.95,145.92,30.674]
[1746469723600,25.8755,145.99,145.92,30.674]
[1746469723900,23.82,145.99,145.92,30.674]
[1746469724602,6.853,145.95,145.93,6.8534]
[1746469725701,6.8524,145.96,145.94,6.8529]
[1746469732408,6.8526,145.95,145.93,6.8533]
[1746469733406,7.33767219,145.97,145.92,23.82]
[1746469733407,6.8524,145.96,145.94,6.8529]
[1746469734207,6.8519,145.97,145.94,6.8529]
[1746469734401,14.18957219,145.97,145.94,6.8529]
[1746469735098,6.8522,145.96,145.94,6.8529]
[1746469739008,6.8522,145.96,145.93,6.8535]
[1746469739202,6.8522,145.96,145.92,23.82]
[1746469739701,14.18957219,145.97,145.94,6.8529]
[1746469741712,14.18937219,145.97,145.95,6.8525]
[1746469742011,14.18937219,145.97,145.92,23.82]
[1746469742511,14.18937219,145.97,145.94,6.8527]
[1746469743214,6.8523,145.96,145.94,6.8527]
[1746469744520,14.18957219,145.97,145.94,6.8527]
[1746469745926,6.8523,145.96,145.94,6.8527]
[1746469748925,14.18957219,145.97,145.94,6.8527]
[1746469749825,7.33767219,145.97,145.95,6.8525]
[1746469750219,31.15767219,145.99,145.96,6.8518]
[1746469750425,38.00857219,145.99,145.92,33.10637219]
[1746469750626,38.00857219,145.99,145.94,7.33767219]
[1746469750924,14.18857219,145.99,145.96,6.8518]
[1746469751721,6.8509,145.99,145.96,6.8518]
[1746469755528,6.8505,146.0,145.97,6.8517]
[1746469755729,6.8505,146.0,145.94,7.33767219]
[1746469756319,6.8509,145.99,145.96,6.8519]
[1746469757630,6.8509,145.99,145.97,6.8516]
[1746469757824,6.8505,146.0,145.97,6.8516]
[1746469758429,6.8508,145.99,145.97,6.8516]
[1746469759733,31.13767219,146.02,145.96,31.13767219]
[1746469759929,7.33767219,146.02,145.96,31.13767219]
[1746469760130,6.8499,146.01,145.98,6.851]
[1746469760324,7.33767219,146.02,145.96,31.13767219]
[1746469760525,25.9038,146.05,145.98,7.33767219]
[1746469760730,6.8494,146.02,146.0,6.8501]
[1746469760930,6.8494,146.02,145.98,7.33767219]
[1746469761329,6.85,146.01,145.98,14.18867219]
[1746469776243,6.8504,146.0,145.98,14.18867219]
[1746469777245,7.33767219,146.04,145.98,14.18867219]
[1746469777246,6.8501,146.01,145.98,14.18867219]
[1746469779446,6.8505,146.0,145.98,7.33767219]
[1746469780848,6.8505,146.0,145.98,14.18887219]
[1746469782248,6.8501,146.01,145.98,14.18887219]
[1746469782546,6.8501,146.01,145.98,6.8512]
[1746469783047,6.8505,146.0,145.97,14.18917219]
[1746469783349,6.8505,146.0,145.97,7.33767219]
[1746469783654,6.8501,146.01,145.98,6.851]
[1746469786455,6.8503,146.0,145.98,6.851]
[1746469787555,6.8501,146.01,145.98,6.851]
[1746469790351,6.8501,146.01,145.98,7.851]
[1746469790547,6.8496,146.02,145.99,6.8507]
[1746469791152,6.8499,146.01,145.98,7.851]
[1746469791451,33.24147219,146.05,145.98,1.0]
[1746469791953,6.8497,146.02,145.99,6.8507]
[1746469792955,6.8491,146.03,146.0,6.8503]
[1746469795457,6.8495,146.02,145.99,14.18817219]
[1746469798752,6.8491,146.03,145.99,14.18817219]
[1746469799456,6.8491,146.03,146.0,6.8502]
[1746469801260,6.8494,146.02,145.99,14.18817219]
[1746469801556,33.24147219,146.05,145.99,7.33767219]
[1746469801753,6.8491,146.03,145.99,7.33767219]
[1746469801958,6.8491,146.03,146.0,6.8503]
[1746469806057,7.33767219,146.06,145.99,7.33767219]
[1746469806266,13.50627219,146.1,146.03,7.33767219]
[1746469806764,6.8473,146.07,146.04,6.8484]
[1746469807058,6.8473,146.07,146.03,7.33767219]
[1746469807464,6.8473,146.07,146.04,6.8483]
[1746469812673,6.8475,146.06,146.04,6.8483]
[1746469812873,7.33767219,146.08,146.03,14.18637219]
[1746469813174,6.8479,146.06,146.03,14.18637219]
[1746469814378,6.8472,146.07,146.03,7.33767219]
[1746469814976,6.8472,146.07,146.04,6.8482]
[1746469816275,6.8472,146.07,146.03,7.33767219]
[1746469816780,6.8472,146.07,146.04,6.8482]
[1746469819580,6.8476,146.06,146.03,14.18627219]
[1746469820780,6.8481,146.05,146.03,7.33767219]
[1746469820980,7.33767219,146.08,146.02,7.33767219]
[1746469821376,6.8477,146.06,146.03,6.8489]
[1746469821578,7.33767219,146.06,146.0,23.78]
[1746469822574,6.8491,146.03,146.0,30.6299]
[1746469823380,6.8495,146.02,146.0,30.6299]
[1746469823579,7.33767219,146.06,146.0,30.6299]
[1746469824180,6.8491,146.03,146.0,30.6299]
[1746469827477,6.8494,146.02,146.0,23.78]
[1746469827685,7.33767219,146.04,146.0,23.78]
[1746469827982,7.33767219,146.04,145.98,8.33767219]
[1746469828182,7.33767219,146.04,145.99,6.8507]
[1746469828582,7.33767219,146.04,145.98,8.33767219]
[1746469828780,7.33767219,146.02,145.98,1.0]
[1746469829287,6.8505,146.0,145.98,1.0]
[1746469830687,9.48427219,146.04,145.99,7.33767219]
[1746469831082,4.2299,146.05,145.99,7.33767219]
[1746469831283,6.8486,146.04,146.01,6.8494]
[1746469831685,13.6887,146.13,146.03,7.33767219]
[1746469831982,7.33767219,146.1,146.04,6.8481]
[1746469832478,6.8469,146.08,146.04,6.8481]
[1746469832678,7.33767219,146.1,146.04,6.8481]
[1746469832878,7.33767219,146.1,146.05,6.8479]
[1746469833285,6.8471,146.07,146.04,6.8483]
[1746469836988,6.8476,146.06,146.03,30.6287]
[1746469837191,23.78,146.11,146.03,23.78]
[1746469837588,6.8473,146.07,146.04,6.8484]
[1746469841092,6.8475,146.06,146.03,30.6287]
[1746469842495,6.8472,146.07,146.03,30.6287]
[1746469842795,6.8472,146.07,146.04,6.8483]
[1746469843297,6.8472,146.07,146.03,30.6287]
[1746469843795,6.8477,146.06,146.03,23.78]
[1746469844099,23.78,146.11,146.03,23.78]
[1746469844796,23.78,146.11,146.03,30.6286]
[1746469844994,6.8473,146.07,146.03,23.78]
[1746469845190,23.78,146.11,146.03,23.78]
[1746469846091,6.8469,146.08,146.03,23.78]
[1746469846293,23.78,146.11,146.04,6.848]
[1746469846596,23.78,146.11,146.03,23.78]
[1746469846793,23.78,146.11,146.04,6.8482]
[1746469847396,23.78,146.11,146.05,6.8478]
[1746469847888,23.78,146.11,146.05,6.8479]
[1746469848085,23.78,146.11,146.03,23.78]
[1746469848397,6.8474,146.07,146.04,6.8482]
[1746469848892,6.8476,146.06,146.04,6.8482]
[1746469849196,6.8476,146.06,146.03,30.6287]
[1746469849696,6.8472,146.07,146.04,6.8483]
[1746469849894,23.78,146.11,146.03,23.78]
[1746469850293,6.8484,146.04,146.03,23.78]
[1746469850497,23.78,146.11,146.03,23.78]
[1746469850794,6.8476,146.06,146.04,6.8484]
[1746469852696,6.8476,146.06,146.03,30.6287]
[1746469852897,6.8476,146.06,146.03,31.6287]
[1746469853298,6.8476,146.06,146.04,6.8484]
[1746469856103,6.8476,146.06,146.03,31.6287]
[1746469856299,4.0208,146.12,146.04,11.44658381]
[1746469856494,25.9166,146.14,146.04,15.56538381]
[1746469856690,6.8449,146.12,146.06,6.8473]
[1746469856906,25.9166,146.14,146.07,23.78]
[1746469857401,6.8453,146.11,146.07,23.78]
[1746469857902,6.8453,146.11,146.07,30.627]
[1746469858302,6.8447,146.12,146.08,7.321958]
[1746469858499,6.8447,146.12,146.08,14.168458]
[1746469858699,33.238558,146.14,146.08,14.168458]
[1746469859098,6.8452,146.11,146.08,7.321958]
[1746469859805,6.8452,146.11,146.07,30.6268]
[1746469860206,25.9166,146.14,146.07,23.78]
[1746469860599,2.1366,146.14,146.07,23.78]
[1746469861200,1.9564,146.15,146.07,35.21968845]
[1746469861396,11.43968845,146.2,146.1,11.43968845]
[1746469861603,6.8431,146.16,146.11,24.9]
[1746469861798,11.43968845,146.2,146.11,24.9]
[1746469862200,6.842,146.18,146.14,6.8434]
[1746469862399,6.842,146.18,146.11,24.9]
[1746469862697,27.0293,146.22,146.11,24.9]
[1746469863200,27.0293,146.22,146.14,6.8434]
[1746469863406,27.0293,146.22,146.11,24.9]
[1746469863798,6.8426,146.17,146.13,6.8439]
[1746469864805,27.0293,146.22,146.13,6.8439]
[1746469865505,6.8427,146.17,146.13,6.8439]
[1746469865807,6.8427,146.17,146.14,6.8437]
[1746469867807,11.43968845,146.2,146.11,24.9]
[1746469868400,6.8431,146.16,146.13,6.8439]
[1746469869707,6.8434,146.15,146.12,6.8445]
[1746469872913,6.8437,146.14,146.12,6.8445]
[1746469873406,6.8435,146.15,146.12,6.8445]
[1746469873806,11.43968845,146.2,146.12,6.8445]
[1746469873999,2.1539,146.19,146.11,24.9]
[1746469874200,6.8445,146.13,146.11,24.9]
[1746469875211,6.8439,146.14,146.11,24.9]
[1746469875710,6.8439,146.14,146.11,31.745]
[1746469876110,6.8444,146.13,146.11,31.745]
[1746469876314,4.1862,146.19,146.11,31.745]
[1746469876703,6.8441,146.14,146.11,31.745]
[1746469877512,6.8441,146.14,146.12,6.8446]
[1746469880813,6.8442,146.13,146.11,31.7449]
[1746469881610,6.8447,146.12,146.11,24.9]
[1746469882103,6.8456,146.1,146.09,125.69325078]
[1746469882308,11.43968845,146.14,146.07,25.14492]
[1746469882309,1.9476,146.13,146.07,25.14492]
[1746469882507,3.974,146.13,146.07,25.14492]
[1746469882714,6.8464,146.09,146.07,25.14492]
[1746469883112,6.8464,146.09,146.07,24.9]
[1746469883811,6.8458,146.1,146.07,24.9]
[1746469884012,6.8458,146.1,146.07,31.747]
[1746469885412,6.8458,146.1,146.08,6.8465]
[1746469886322,6.8458,146.1,146.07,31.7468]
[1746469886615,6.8461,146.09,146.07,31.7468]
[1746469888818,6.8458,146.1,146.07,31.7468]
[1746469889417,6.8461,146.09,146.07,31.7468]
[1746469890620,6.8457,146.1,146.08,6.8465]
[1746469890921,3.974,146.13,146.07,24.9]
[1746469891218,1.9476,146.13,146.07,24.9]
[1746469891420,24.9,146.14,146.07,24.9]
[1746469891716,38.45628845,146.17,146.07,24.9]
[1746469891916,6.8444,146.13,146.07,24.9]
[1746469892116,38.45628845,146.17,146.07,24.9]
[1746469892316,6.8436,146.15,146.12,6.8443]
[1746469893120,6.8438,146.14,146.12,6.8443]
[1746469894320,6.8442,146.13,146.11,31.765]
[1746469894925,6.844,146.14,146.11,31.765]
[1746469896926,6.844,146.14,146.12,6.8446]
[1746469897419,36.35968845,146.17,146.12,6.8446]
[1746469897725,6.8435,146.15,146.12,6.8446]
[1746469898023,6.8438,146.14,146.12,6.8446]
[1746469898427,36.35968845,146.17,146.11,24.92]
[1746469898623,6.8434,146.15,146.11,24.92]
[1746469899221,6.8434,146.15,146.12,6.8446]
[1746469899528,6.8434,146.15,146.11,24.92]
[1746469899825,6.8434,146.15,146.12,6.8444]
[1746469900032,6.843,146.16,146.11,24.92]
[1746469900725,6.843,146.16,146.13,6.844]
[1746469901933,11.43968845,146.17,146.11,24.92]
[1746469902729,11.43968845,146.17,146.11,31.7648]
[1746469902927,11.43968845,146.17,146.11,24.92]
[1746469903327,6.8437,146.15,146.12,6.8444]
[1746469907830,6.8437,146.15,146.13,6.8442]
[1746469908027,4.2709,146.19,146.11,24.92]
[1746469908427,4.2709,146.19,146.13,6.844]
[1746469909031,6.8435,146.15,146.13,6.844]
[1746469910737,6.843,146.16,146.14,6.8437]
[1746469911034,11.43968845,146.27,146.15,24.9]
[1746469911221,11.43968845,146.27,146.2,6.8409]
[1746469911628,11.43968845,146.27,146.16,29.0271]
[1746469912035,6.8398,146.23,146.2,6.8405]
[1746469912234,11.43968845,146.27,146.16,29.0271]
[1746469912531,31.0931,146.28,146.16,29.0271]
[1746469912532,6.8394,146.24,146.21,6.8402]
[1746469913034,6.8394,146.24,146.21,6.8401]
[1746469913335,6.8394,146.24,146.2,24.9]
[1746469913634,6.8394,146.24,146.21,6.8401]
[1746469915124,6.8396,146.23,146.21,6.8401]
[1746469915328,42.53278845,146.28,146.21,6.8401]
[1746469915636,6.8395,146.24,146.21,6.8401]
[1746469915832,42.53278845,146.28,146.2,31.7407]
[1746469916337,6.8398,146.23,146.2,31.7407]
[1746469916633,6.8398,146.23,146.21,6.8404]
[1746469917144,11.43968845,146.3,146.23,6.8394]
[1746469917531,6.8385,146.26,146.23,6.8394]
[1746469918135,6.8389,146.25,146.23,6.8394]
[1746469918336,6.8389,146.25,146.2,24.9]
[1746469919739,6.8389,146.25,146.22,6.8398]
[1746469920238,6.8392,146.24,146.22,6.8398]
[1746469920633,11.43968845,146.3,146.22,6.8398]
[1746469920838,6.8389,146.25,146.22,6.8398]
[1746469921038,6.8389,146.25,146.2,24.9]
[1746469921738,6.8389,146.25,146.22,6.8396]
[1746469921932,6.8389,146.25,146.2,24.9]
[1746469922234,6.8389,146.25,146.23,6.8393]
[1746469922440,6.8384,146.26,146.2,24.9]
[1746469923437,6.8379,146.27,146.2,24.9]
[1746469923839,6.8379,146.27,146.21,4.1387]
[1746469924847,11.43968845,146.3,146.25,6.8385]
[1746469925234,6.8376,146.28,146.25,6.8385]
[1746469926640,6.8377,146.27,146.25,6.8385]
[1746469926848,11.43968845,146.3,146.24,31.5988]
[1746469927048,11.43968845,146.3,146.24,24.76]
[1746469928139,11.43968845,146.33,146.26,6.8379]
[1746469929648,6.8372,146.29,146.26,6.8379]
[1746469929947,11.43968845,146.33,146.25,6.8384]
[1746469930241,6.8374,146.28,146.25,6.8384]
[1746469930848,6.8377,146.27,146.25,6.8384]
[1746469931649,6.8381,146.26,146.24,31.599]
[1746469931851,6.8381,146.26,146.24,24.76]
[1746469932057,11.43968845,146.33,146.24,24.76]
[1746469932353,6.8386,146.25,146.24,24.76]
[1746469932853,2.1405,146.31,146.24,24.76]
[1746469933055,6.8384,146.26,146.24,24.76]
[1746469934655,6.8384,146.26,146.24,31.599]
[1746469934951,6.8386,146.25,146.24,24.76]
[1746469936755,11.43968845,146.27,146.21,24.74]
[1746469937865,6.8404,146.22,146.21,24.74]
[1746469943664,2.036,146.26,146.21,24.74]
[1746469944262,6.8399,146.23,146.21,24.74]
[1746469945069,6.84,146.22,146.21,24.74]
[1746469945269,26.776,146.26,146.18,25.05691]
[1746469945469,4.0665,146.25,146.18,25.05691]
[1746469945670,6.8407,146.21,146.18,25.05691]
[1746469946670,6.8407,146.21,146.19,6.8412]
[1746469947772,6.8409,146.2,146.18,31.89861]
[1746469948170,4.0665,146.25,146.18,31.89861]
[1746469948469,6.8408,146.21,146.18,31.89861]
[1746469949172,6.8408,146.21,146.19,6.8414]
[1746469949770,6.8408,146.21,146.18,31.5816]
[1746469950070,6.8408,146.21,146.18,24.74]
[1746469950473,6.8408,146.21,146.18,31.5816]
[1746469951875,6.8408,146.21,146.19,6.8414]
[1746469957279,6.8402,146.22,146.19,6.8414]
[1746469957667,4.0665,146.25,146.21,6.8405]
[1746469957868,1.9767,146.25,146.21,6.8405]
[1746469958075,6.8391,146.24,146.21,6.8405]
[1746469958886,6.8396,146.23,146.21,6.8405]
[1746469959086,6.8396,146.23,146.18,24.74]
[1746469959377,1.9767,146.25,146.19,6.8413]
[1746469959677,6.8402,146.22,146.19,6.8413]
[1746469959880,6.8402,146.22,146.2,6.8409]
[1746469960083,1.9767,146.25,146.18,24.74]
[1746469960382,6.8394,146.24,146.18,24.74]
[1746469960983,6.8394,146.24,146.22,6.8399]
[1746469961984,26.776,146.26,146.23,6.8395]
[1746469962386,28.6763,146.29,146.23,6.8395]
[1746469962886,6.8384,146.26,146.23,6.8395]
[1746469963286,6.8384,146.26,146.24,6.839]
[1746469964487,6.8379,146.27,146.24,6.839]
[1746469965587,6.8381,146.26,146.24,6.839]
[1746469966390,6.8381,146.26,146.23,6.8393]
[1746469966882,6.8381,146.26,146.24,6.839]
[1746469968291,6.8381,146.26,146.23,6.8393]
[1746469968992,28.6763,146.29,146.22,24.52]
[1746469969792,6.8393,146.24,146.22,24.52]
[1746469970293,28.6763,146.29,146.22,24.52]
[1746469970495,6.8388,146.25,146.22,31.3596]
[1746469970997,6.8388,146.25,146.23,6.8395]
[1746469971290,6.8382,146.26,146.22,24.52]
[1746469971489,28.6763,146.29,146.22,24.52]
[1746469972195,6.8381,146.27,146.24,6.8388]
[1746469973293,6.8382,146.26,146.24,6.8388]
[1746469973886,28.6763,146.29,146.24,6.8388]
[1746469974092,6.8378,146.27,146.24,6.8388]
[1746469974792,28.6763,146.29,146.22,24.52]
[1746469974793,6.8374,146.28,146.25,6.8382]
[1746469974995,6.8374,146.28,146.22,24.52]
[1746469975792,6.8374,146.28,146.26,6.838]
[1746469978893,6.837,146.29,146.26,6.8378]
[1746469979098,24.52,146.32,146.22,35.95968845]
[1746469979797,6.836,146.31,146.28,6.8371]
[1746469979997,24.52,146.32,146.26,24.52]
[1746469980497,6.8365,146.3,146.27,6.8374]
[1746469980701,11.43968845,146.35,146.26,24.52]
[1746469980894,35.89968845,146.37,146.26,24.52]
[1746469981095,35.89968845,146.37,146.29,6.8366]
[1746469981494,6.8358,146.31,146.29,6.8366]
[1746469981694,6.8358,146.31,146.26,24.52]
[1746469982198,6.8358,146.31,146.29,6.8366]
[1746469982897,6.8355,146.32,146.29,6.8366]
[1746469983095,35.89968845,146.37,146.29,6.8366]
[1746469983300,6.8355,146.32,146.29,6.8366]
[1746469983598,35.89968845,146.37,146.28,6.837]
[1746469984000,6.8358,146.31,146.28,6.837]
[1746469984804,6.8363,146.3,146.28,6.837]
[1746469985203,35.89968845,146.37,146.28,6.837]
[1746469985396,6.836,146.31,146.28,6.837]
[1746469986803,6.8355,146.32,146.26,28.6325]
[1746469987005,35.89968845,146.37,146.26,28.6325]
[1746469987400,6.8354,146.32,146.29,6.8366]
[1746469987905,6.8354,146.32,146.3,6.8362]
[1746469989105,6.8354,146.32,146.29,6.8365]
[1746469989408,6.8354,146.32,146.26,28.6325]
[1746469990105,6.8354,146.32,146.29,6.8363]
[1746469990306,6.8354,146.32,146.26,28.6325]
[1746469990707,6.8354,146.32,146.29,6.8363]
[1746469991607,6.8359,146.31,146.29,6.8363]
[1746469992306,6.8355,146.32,146.29,6.8363]
[1746469993209,6.8355,146.32,146.3,6.8361]
[1746469993508,6.8355,146.32,146.26,28.6325]
[1746469993809,6.8355,146.32,146.29,6.8365]
[1746469994107,6.8358,146.31,146.26,28.6325]
[1746469994606,6.8358,146.31,146.29,6.8365]
[1746469995303,6.8356,146.32,146.29,6.8365]
[1746469995910,11.43968845,146.34,146.26,24.52]
[1746469996100,4.1643,146.33,146.26,24.52]
[1746469996303,30.7066,146.33,146.26,24.52]
[1746469996810,6.8367,146.29,146.26,31.3579]
[1746469997516,6.8367,146.29,146.27,6.8376]
[1746469997810,6.8367,146.29,146.26,24.52]
[1746469998010,6.8367,146.29,146.26,31.3579]
[1746469999211,6.8365,146.3,146.27,6.8376]
[1746469999710,30.7066,146.33,146.26,24.52]
[1746469999911,6.8367,146.29,146.26,31.3578]
[1746470000106,30.7066,146.33,146.26,24.52]
[1746470000314,24.46,146.36,146.26,24.52]
[1746470000513,6.8357,146.32,146.29,6.8364]
[1746470000813,24.46,146.36,146.26,24.52]
[1746470001113,6.8356,146.32,146.29,6.8367]
[1746470003815,6.8358,146.31,146.29,6.8367]
[1746470005218,6.8356,146.32,146.29,6.8367]
[1746470005813,6.8356,146.32,146.3,6.8362]
[1746470006013,6.8356,146.32,146.26,24.52]
[1746470006317,6.8358,146.31,146.28,6.8367]
[1746470006516,24.46,146.36,146.26,24.52]
[1746470007117,6.8354,146.32,146.29,6.8367]
[1746470007618,6.8354,146.32,146.26,24.52]
[1746470008416,6.8354,146.32,146.3,6.836]
[1746470014132,6.8354,146.32,146.29,6.8365]
[1746470014434,6.8354,146.32,146.28,7.30085644]
[1746470014627,6.8354,146.32,146.3,6.8362]
[1746470016636,6.8351,146.33,146.3,6.8362]
[1746470017235,6.8354,146.32,146.3,6.8362]
[1746470020636,6.8354,146.32,146.31,2.64967595]
[1746470021345,6.8354,146.32,146.31,2.64959107]
[1746470025143,6.8351,146.33,146.31,2.64959107]
[1746470025440,6.8351,146.33,146.32,2.64959107]
[1746470025636,7.30085644,146.36,146.32,2.64959107]
[1746470025830,6.8346,146.34,146.33,2.64959107]
[1746470026039,24.25890725,146.45,146.33,9.95044751]
[1746470026243,7.30085644,146.42,146.35,6.8334]
[1746470026544,24.25890725,146.45,146.36,2.64875561]
[1746470026545,3.24534075,146.44,146.36,2.64875561]
[1746470026737,7.30085644,146.39,146.37,2.64855735]
[1746470026942,2.0123,146.44,146.36,6.8334]
[1746470027138,2.0123,146.44,146.37,2.65835524]
[1746470027338,6.832,146.4,146.34,14.13515644]
[1746470027544,7.30085644,146.39,146.35,2.65697648]
[1746470027737,2.0123,146.44,146.36,2.65697648]
[1746470027936,13.41045728,146.44,146.37,2.65697648]
[1746470028135,13.41045728,146.44,146.38,2.65697648]
[1746470028334,13.41045728,146.44,146.35,6.8337]
[1746470028536,13.41045728,146.44,146.36,2.65428294]
[1746470028736,13.41045728,146.44,146.37,2.65428294]
[1746470028932,6.8318,146.4,146.38,2.65428294]
[1746470029139,13.41045728,146.44,146.34,6.8342]
[1746470029341,11.39815728,146.43,146.35,2.65268286]
[1746470029540,2.0123,146.44,146.36,2.65268286]
[1746470029731,13.41045728,146.44,146.37,2.65268286]
[1746470029936,13.41045728,146.44,146.38,2.65259336]
[1746470030139,6.8319,146.4,146.35,6.8339]
[1746470030338,6.8319,146.4,146.36,2.66587531]
[1746470030537,6.8319,146.4,146.37,2.66587531]
[1746470030740,6.8319,146.4,146.38,2.66587531]
[1746470030937,6.8319,146.4,146.35,6.8339]
[1746470031140,6.8319,146.4,146.36,2.66528447]
[1746470031337,6.8319,146.4,146.37,2.66528447]
[1746470031543,6.8319,146.4,146.38,2.66528447]
[1746470031743,6.8319,146.4,146.35,6.8339]
[1746470031943,6.8319,146.4,146.36,2.66519441]
[1746470032244,6.8319,146.4,146.37,2.66519441]
[1746470032444,6.8319,146.4,146.35,6.8339]
[1746470032646,6.8322,146.39,146.36,2.66452276]
[1746470032944,6.8322,146.39,146.37,2.66452276]
[1746470033242,6.8322,146.39,146.35,6.8339]
[1746470033443,6.8322,146.39,146.36,2.66379188]
[1746470033643,6.8322,146.39,146.35,6.8339]
[1746470033846,6.8322,146.39,146.36,2.66373786]
[1746470034039,6.8322,146.39,146.35,6.8339]
[1746470034345,6.8322,146.39,146.36,2.66366516]
[1746470034545,6.8322,146.39,146.37,2.66366516]
[1746470034747,6.8322,146.39,146.35,6.8339]
[1746470034945,6.8322,146.39,146.36,2.66244206]
[1746470035245,6.8322,146.39,146.33,28.7009]
[1746470035443,6.8322,146.39,146.36,6.8333]
[1746470035640,13.41045728,146.44,146.37,2.66150748]
[1746470035843,13.41045728,146.44,146.38,2.66099164]
[1746470036145,4.1117,146.46,146.33,30.7902]
[1746470036446,41.26985728,146.46,146.34,28.42004629]
[1746470036647,41.26985728,146.46,146.35,14.05820357]
[1746470036849,6.831,146.42,146.36,2.66012437]
[1746470037049,41.26985728,146.46,146.37,2.66012437]
[1746470037246,2.0342,146.45,146.38,2.66031631]
[1746470037549,6.8308,146.42,146.35,217.25633387]
[1746470037751,2.0342,146.45,146.36,2.66016691]
[1746470037943,6.8304,146.43,146.37,2.66016691]
[1746470038146,6.8304,146.43,146.39,6.8318]
[1746470038442,2.0342,146.45,146.39,6.8318]
[1746470039251,2.0342,146.45,146.4,6.8315]
[1746470039546,6.8301,146.44,146.4,6.8315]
[1746470039950,2.0342,146.45,146.4,6.8315]
[1746470040555,6.8299,146.44,146.41,6.8311]
[1746470041051,37.15815728,146.49,146.38,25.76]
[1746470041240,6.8291,146.46,146.39,2.65437982]
[1746470041446,6.8291,146.46,146.4,2.65437982]
[1746470041645,6.8291,146.46,146.41,2.65437982]
[1746470041847,6.8291,146.46,146.42,28.41437982]
[1746470042046,6.8291,146.46,146.42,25.76]
[1746470042246,37.15815728,146.49,146.42,32.5904]
[1746470042643,37.15815728,146.49,146.42,25.76]
[1746470042850,6.8293,146.45,146.42,25.76]
[1746470043446,6.8298,146.44,146.42,25.76]
[1746470043646,37.15815728,146.49,146.42,25.76]
[1746470043843,6.8302,146.43,146.42,25.76]
[1746470044051,11.39815728,146.46,146.39,25.76]